bitfinex/quotes_SOLUSD_20241127
["timestamp","ask_amount","ask_price","bid_price","bid_amount"]
[1732722636387,7.2643,240.9,240.85,5.0]
[1732722636975,20.0,240.87,240.86,5.0]
[1732722637560,20.0,240.87,240.84,5.0]
[1732722637759,2.0758,240.86,240.82,10.0]
[1732722637968,2.0758,240.86,240.82,5.0]
[1732722638490,22.0758,240.86,240.85,5.0]
[1732722638669,27.2655,240.86,240.85,10.0]
[1732722638867,2.0758,240.86,240.83,5.0]
[1732722639082,26.2275,240.86,240.83,5.0]
[1732722639789,26.2275,240.86,240.84,5.0]
[1732722640194,26.2275,240.86,240.85,5.0]
[1732722640570,2.0758,240.86,240.85,28.776884]
[1732722640984,2.0758,240.86,240.84,25.04898342]
[1732722641174,2.0758,240.86,240.85,5.0]
[1732722641696,4.1517,240.87,240.85,10.0]
[1732722641895,24.1517,240.87,240.83,5.0]
[1732722642194,20.0,240.86,240.85,5.0]
[1732722642377,20.0,240.86,240.85,10.0]
[1732722642582,20.0,240.86,240.85,11.66167608]
[1732722643088,4.1517,240.87,240.85,10.0]
[1732722643297,24.1517,240.87,240.86,6.66159998]
[1732722643888,20.0,240.87,240.86,1.66159998]
[1732722644194,21.6606,240.87,240.86,11.66159998]
[1732722644489,1.6606,240.87,240.86,11.66159998]
[1732722645101,1.6606,240.87,240.86,31.71053451]
[1732722645602,1.6606,240.87,240.86,11.66155109]
[1732722645771,36.1216,240.91,240.86,11.66155109]
[1732722645972,5.8115,240.9,240.89,10.0]
[1732722646197,5.8115,240.9,240.89,11.66155109]
[1732722646789,5.8115,240.9,240.88,5.0]
[1732722646980,5.8115,240.9,240.88,10.0]
[1732722647582,5.8115,240.9,240.83,5.0]
[1732722647892,5.8115,240.9,240.87,5.0]
[1732722648102,21.6605,240.88,240.87,5.0]
[1732722648577,1.6605,240.88,240.87,5.0]
[1732722648781,1.6605,240.88,240.86,5.0]
[1732722648979,1.6605,240.88,240.87,5.0]
[1732722650188,4.1511,240.9,240.87,5.0]
[1732722650377,4.1511,240.9,240.86,5.0]
[1732722650378,24.1511,240.9,240.89,5.0]
[1732722650575,20.0,240.89,240.86,5.0]
[1732722650992,20.0,240.89,240.88,10.0]
[1732722651491,24.1511,240.9,240.89,5.0]
[1732722651796,24.1511,240.9,240.86,5.0]
[1732722651999,24.1511,240.9,240.85,5.0]
[1732722652000,20.0,240.88,240.85,5.0]
[1732722652180,1.6606,240.87,240.85,5.0]
[1732722652380,1.6606,240.87,240.86,5.0]
[1732722653389,21.6606,240.87,240.83,5.0]
[1732722653701,5.8122,240.87,240.86,5.0]
[1732722654086,26.53132687,240.87,240.78,5.0]
[1732722654282,18.22912687,240.83,240.78,5.0]
[1732722654483,5.8132,240.83,240.78,5.0]
[1732722655201,5.8132,240.83,240.74,17.41592687]
[1732722655202,18.22912687,240.83,240.74,17.41592687]
[1732722655402,18.22912687,240.83,240.77,5.0]
[1732722655700,5.8132,240.83,240.79,5.0]
[1732722655875,5.8132,240.83,240.81,5.0]
[1732722656079,1.6609,240.83,240.81,5.0]
[1732722656307,1.6609,240.83,240.78,12.41592687]
[1732722656308,1.6607,240.85,240.84,5.0]
[1732722656481,1.6607,240.85,240.82,5.0]
[1732722657790,1.6607,240.85,240.8,5.0]
[1732722658010,1.6607,240.85,240.82,5.0]
[1732722658383,1.6607,240.86,240.82,5.0]
[1732722658792,20.0,240.84,240.78,17.41592687]
[1732722658993,20.0,240.84,240.8,5.0]
[1732722659309,20.0,240.84,240.78,17.41592687]
[1732722659792,4.1519,240.85,240.76,5.0]
[1732722659793,12.41592687,240.8,240.76,5.0]
[1732722659993,32.41592687,240.82,240.78,5.0]
[1732722660200,20.0,240.8,240.78,5.0]
[1732722660399,5.814,240.79,240.74,5.0]
[1732722660899,21.6611,240.79,240.78,5.0]
[1732722661596,21.6611,240.79,240.75,5.0]
[1732722661982,12.41592687,240.78,240.75,5.0]
[1732722662182,25.814,240.79,240.75,5.0]
[1732722664000,12.41592687,240.78,240.75,5.0]
[1732722664196,12.41592687,240.76,240.72,5.0]
[1732722664403,1.6614,240.75,240.72,5.0]
[1732722665514,12.41592687,240.74,240.67,5.0]
[1732722665693,12.41592687,240.69,240.65,5.0]
[1732722665893,12.41592687,240.66,240.62,5.0]
[1732722666209,12.41592687,240.64,240.58,5.0]
[1732722666505,12.41592687,240.62,240.58,5.0]
[1732722666892,12.41592687,240.6,240.58,5.0]
[1732722667109,12.41592687,240.6,240.54,5.0]
[1732722667292,12.41592687,240.58,240.54,5.0]
[1732722667905,12.41592687,240.56,240.54,5.0]
[1732722668086,12.2946,240.62,240.54,5.0]
[1732722668292,12.41592687,240.58,240.56,5.0]
[1732722668494,12.2946,240.62,240.56,5.0]
[1732722668495,1.6627,240.57,240.56,5.0]
[1732722668692,20.0,240.6,240.59,5.0]
[1732722668899,20.0,240.59,240.58,5.0]
[1732722669207,20.0,240.59,240.56,5.0]
[1732722669414,20.0,240.59,240.58,5.0]
[1732722669709,20.0,240.59,240.56,5.0]
[1732722670017,39.91500146,240.59,240.54,5.0]
[1732722670185,19.91500146,240.57,240.54,5.0]
[1732722670390,19.91500146,240.57,240.52,5.0]
[1732722670587,1.6627,240.56,240.55,5.0]
[1732722671923,1.6627,240.56,240.53,5.0]
[1732722672411,1.6627,240.58,240.57,5.0]
[1732722672618,1.6627,240.58,240.55,5.0]
[1732722673108,1.6627,240.58,240.57,5.0]
[1732722673809,1.6627,240.58,240.55,5.0]
[1732722673997,1.6627,240.58,240.52,5.0]
[1732722674318,19.91500146,240.57,240.56,5.0]
[1732722674494,1.6627,240.58,240.56,5.0]
[1732722674691,1.662,240.66,240.56,18.0777]
[1732722674891,19.91500146,240.63,240.61,5.0]
[1732722675505,5.8172,240.66,240.63,5.0]
[1732722675805,19.91500146,240.65,240.54,5.0]
[1732722676003,19.91500146,240.62,240.59,5.0]
[1732722676311,19.91500146,240.62,240.55,5.0]
[1732722676517,19.91500146,240.62,240.53,19.91500146]
[1732722676518,1.6624,240.61,240.57,5.0]
[1732722676813,4.5,240.67,240.57,5.0]
[1732722676814,1.6623,240.63,240.61,5.0]
[1732722677314,20.0,240.64,240.61,5.0]
[1732722677512,20.0,240.64,240.63,5.0]
[1732722678512,20.0,240.64,240.61,5.0]
[1732722678725,1.6623,240.63,240.61,5.0]
[1732722679092,1.6619,240.68,240.66,5.0]
[1732722679300,1.6619,240.68,240.63,5.0]
[1732722679301,19.91500146,240.67,240.63,5.0]
[1732722679718,5.8167,240.68,240.67,5.0]
[1732722680016,1.6619,240.68,240.67,5.0]
[1732722680396,21.57690146,240.68,240.65,5.0]
[1732722680598,19.91500146,240.66,240.61,5.0]
[1732722680794,19.91500146,240.63,240.61,5.0]
[1732722681012,19.91500146,240.65,240.61,5.0]
[1732722681999,1.6622,240.64,240.61,5.0]
[1732722683119,1.6622,240.64,240.56,5.0]
[1732722683120,20.0,240.6,240.56,5.0]
[1732722683317,19.91500146,240.59,240.56,5.0]
[1732722683700,19.91500146,240.63,240.6,5.0]
[1732722683902,19.91500146,240.61,240.56,5.0]
[1732722685522,32.6156,240.62,240.6,5.0]
[1732722685714,32.6156,240.62,240.58,5.0]
[1732722686917,19.91500146,240.65,240.61,5.0]
[1732722687500,30.1932,240.68,240.63,5.0]
[1732722687702,19.91500146,240.66,240.63,5.0]
[1732722688001,19.91500146,240.66,240.61,5.0]
[1732722688507,19.91500146,240.66,240.59,5.0]
[1732722688824,19.91500146,240.62,240.59,5.0]
[1732722689022,19.91500146,240.64,240.59,5.0]
[1732722689221,19.91500146,240.66,240.61,5.0]
[1732722689608,19.91500146,240.66,240.63,5.0]
[1732722689818,19.91500146,240.66,240.6,5.0]
[1732722690017,21.57710146,240.66,240.6,5.0]
[1732722690217,21.57710146,240.66,240.62,5.0]
[1732722690518,12.4430172,240.65,240.62,5.0]
[1732722690718,1.662,240.67,240.62,5.0]
[1732722691299,1.662,240.67,240.6,5.0]
[1732722691524,12.4430172,240.66,240.6,5.0]
[1732722691915,1.6621,240.65,240.61,23.776884]
[1732722692311,12.4430172,240.64,240.58,5.0]
[1732722692524,1.6621,240.65,240.58,5.0]
[1732722692525,12.4430172,240.62,240.58,5.0]
[1732722692823,12.4430172,240.6,240.56,5.0]
[1732722693128,12.4430172,240.62,240.56,5.0]
[1732722694231,12.4430172,240.64,240.58,5.0]
[1732722695127,30.0,240.59,240.58,5.0]
[1732722696718,30.0,240.59,240.58,28.776884]
[1732722698031,1.6621,240.65,240.59,23.776884]
[1732722698217,30.0,240.6,240.59,23.776884]
[1732722698812,30.0,240.6,240.58,5.0]
[1732722701233,42.4430172,240.6,240.54,5.0]
[1732722701419,42.4430172,240.6,240.55,5.0]
[1732722701618,42.4430172,240.6,240.56,23.776884]
[1732722702026,30.0,240.6,240.57,5.0]
[1732722702419,30.0,240.6,240.56,23.776884]
[1732722702835,30.0,240.6,240.55,5.0]
[1732722703634,44.1055172,240.6,240.55,5.0]
[1732722703837,44.1055172,240.6,240.53,5.0]
[1732722704220,12.4430172,240.58,240.52,23.776884]
[1732722704630,12.4430172,240.58,240.51,5.0]
[1732722704933,12.4430172,240.58,240.53,5.0]
[1732722705235,44.1055172,240.6,240.53,5.0]
[1732722705934,12.4430172,240.58,240.5,5.0]
[1732722706142,12.4430172,240.58,240.53,5.0]
[1732722707134,20.0,240.55,240.48,5.0]
[1732722707342,12.4430172,240.54,240.48,5.0]
[1732722707641,12.4430172,240.54,240.46,5.0]
[1732722707820,12.4430172,240.54,240.45,12.4430172]
[1732722707821,12.4430172,240.54,240.48,5.0]
[1732722708537,12.4430172,240.54,240.47,23.776884]
[1732722708927,12.4430172,240.54,240.48,5.0]
[1732722709131,14.1059172,240.54,240.48,5.0]
[1732722709328,12.4430172,240.54,240.48,5.0]
[1732722710041,12.4430172,240.52,240.48,5.0]
[1732722710238,12.4430172,240.54,240.48,5.0]
[1732722710442,12.4430172,240.54,240.47,23.776884]
[1732722710643,14.1057172,240.56,240.48,5.0]
[1732722710945,12.4430172,240.54,240.49,23.776884]
[1732722711151,12.4430172,240.54,240.48,5.0]
[1732722711335,14.1059172,240.54,240.47,23.776884]
[1732722711521,12.4430172,240.52,240.45,23.776884]
[1732722711721,12.4430172,240.5,240.44,5.0]
[1732722712035,24.5,240.53,240.44,5.0]
[1732722712036,12.4430172,240.52,240.44,5.0]
[1732722712340,12.4430172,240.52,240.46,5.0]
[1732722713048,12.4430172,240.52,240.45,23.776884]
[1732722713748,14.1060172,240.52,240.45,23.776884]
[1732722714444,12.4430172,240.52,240.47,5.0]
[1732722714651,16.9430172,240.5,240.41,5.0]
[1732722714946,12.4430172,240.5,240.43,5.0]
[1732722715149,14.1062172,240.5,240.43,5.0]
[1732722715327,14.1062172,240.5,240.41,5.0]
[1732722715931,14.1062172,240.5,240.42,23.776884]
[1732722716132,14.1062172,240.5,240.44,5.0]
[1732722716329,12.4430172,240.5,240.44,5.0]
[1732722717053,20.0,240.53,240.46,17.4430172]
[1732722717731,20.0,240.53,240.46,5.0]
[1732722718155,12.4430172,240.52,240.46,5.0]
[1732722718447,20.0,240.53,240.46,17.4430172]
[1732722718826,20.0,240.53,240.47,5.0]
[1732722720454,31.2144,240.57,240.54,5.0]
[1732722720760,30.0,240.6,240.58,5.0]
[1732722721261,30.0,240.6,240.57,23.776884]
[1732722721642,30.0,240.6,240.59,5.0]
[1732722722839,30.0,240.6,240.55,5.0]
[1732722723146,30.0,240.6,240.56,23.776884]
[1732722723330,30.0,240.6,240.58,5.0]
[1732722725260,30.0,240.6,240.56,5.0]
[1732722726149,30.0,240.6,240.58,5.0]
[1732722726346,30.0,240.6,240.56,5.0]
[1732722726955,30.0,240.6,240.58,5.0]
[1732722727929,30.0,240.6,240.59,23.776884]
[1732722730357,30.0,240.6,240.59,27.933284]
[1732722730551,30.3527,240.7,240.68,5.0]
[1732722730732,4.1529,240.8,240.68,5.0]
[1732722730733,12.4430172,240.73,240.68,5.0]
[1732722730938,12.4430172,240.73,240.71,5.0]
[1732722731136,12.4430172,240.73,240.59,24.60580269]
[1732722731137,12.4430172,240.75,240.67,5.0]
[1732722731365,12.4430172,240.73,240.68,23.776884]
[1732722731847,12.4430172,240.73,240.67,5.0]
[1732722732451,12.4430172,240.73,240.69,5.0]
[1732722732642,12.4430172,240.73,240.7,5.0]
[1732722732845,12.4430172,240.73,240.68,5.0]
[1732722733443,33.9223,240.76,240.7,5.0]
[1732722733444,12.4430172,240.75,240.7,5.0]
[1732722734160,32.2609,240.76,240.72,5.0]
[1732722734664,44.7039172,240.76,240.72,5.0]
[1732722735743,12.4430172,240.74,240.7,5.0]
[1732722735936,12.4430172,240.72,240.7,5.0]
[1732722736756,12.4430172,240.72,240.69,5.0]
[1732722737261,12.4430172,240.72,240.58,0.82885599]
[1732722737262,20.0,240.67,240.49,4.158]
[1732722737440,12.4430172,240.64,240.54,12.4430172]
[1732722737642,12.4430172,240.64,240.56,12.4430172]
[1732722737844,20.0,240.67,240.56,12.4430172]
[1732722737845,12.4430172,240.66,240.56,12.4430172]
[1732722738148,12.4430172,240.65,240.54,12.4430172]
[1732722738336,12.4430172,240.65,240.56,12.4430172]
[1732722738735,12.4430172,240.67,240.58,12.4430172]
[1732722739142,12.4430172,240.67,240.59,23.776884]
[1732722739552,12.4430172,240.65,240.59,23.776884]
[1732722739758,12.4430172,240.67,240.59,23.776884]
[1732722740239,12.4430172,240.69,240.62,23.776884]
[1732722740447,32.3095,240.71,240.64,23.776884]
[1732722740847,12.4430172,240.7,240.64,23.776884]
[1732722741156,12.4430172,240.68,240.6,23.776884]
[1732722742347,12.4430172,240.66,240.6,23.776884]
[1732722742555,12.4430172,240.66,240.58,23.776884]
[1732722743368,12.4430172,240.68,240.59,12.4430172]
[1732722743553,12.4430172,240.7,240.62,23.776884]
[1732722743755,32.3095,240.71,240.63,12.4430172]
[1732722743960,12.4430172,240.72,240.65,12.4430172]
[1732722744164,12.4430172,240.7,240.66,23.776884]
[1732722744462,12.4430172,240.7,240.64,23.776884]
[1732722744773,12.4430172,240.7,240.62,23.776884]
[1732722744951,12.4430172,240.74,240.65,12.4430172]
[1732722745152,12.4430172,240.72,240.66,23.776884]
[1732722745657,12.4430172,240.72,240.64,23.776884]
[1732722745884,12.4430172,240.74,240.66,23.776884]
[1732722746574,32.2554,240.77,240.69,12.4430172]
[1732722746752,12.4430172,240.74,240.7,23.776884]
[1732722749350,30.0,240.71,240.7,23.776884]
[1732722750275,30.0,240.71,240.6,4.1561]
[1732722750456,12.4430172,240.67,240.59,23.1835]
[1732722750770,12.4430172,240.6,240.59,10.0]
[1732722754952,12.4430172,240.62,240.6,23.776884]
[1732722755255,12.4430172,240.62,240.59,10.0]
[1732722755461,12.4430172,240.62,240.6,23.776884]
[1732722757775,12.4430172,240.66,240.6,23.776884]
[1732722757980,12.4430172,240.68,240.6,23.776884]
[1732722758177,12.4430172,240.68,240.61,12.4430172]
[1732722758379,12.4430172,240.68,240.62,23.776884]
[1732722759384,12.4430172,240.68,240.6,27.933084]
[1732722759564,12.4430172,240.68,240.6,40.3761012]
[1732722760767,30.0,240.71,240.59,10.0]
[1732722760768,12.4430172,240.65,240.59,10.0]
[1732722760968,12.4430172,240.67,240.59,14.1563]
[1732722761180,12.4430172,240.67,240.59,26.5993172]
[1732722761986,12.4430172,240.67,240.6,23.776884]
[1732722762377,42.4430172,240.71,240.62,12.4430172]
[1732722762581,42.4430172,240.71,240.63,23.776884]
[1732722763191,30.0,240.71,240.65,23.776884]
[1732722763371,30.0,240.71,240.67,23.776884]
[1732722763684,30.0,240.71,240.69,23.776884]
[1732722765287,30.0,240.71,240.68,23.776884]
[1732722766177,30.0,240.71,240.67,23.776884]
[1732722767080,30.0,240.71,240.65,23.776884]
[1732722767280,30.0,240.71,240.64,16.5984172]
[1732722767963,30.0,240.71,240.66,12.4430172]
[1732722768681,30.0,240.71,240.67,23.776884]
[1732722769976,30.0,240.71,240.66,12.4430172]
[1732722769977,30.0,240.71,240.66,23.776884]
[1732722770789,30.0,240.71,240.66,12.4430172]
[1732722770973,30.0,240.71,240.69,23.776884]
[1732722771766,30.0,240.71,240.7,23.776884]
[1732722772177,30.0,240.71,240.65,23.776884]
[1732722772967,30.0,240.71,240.66,23.776884]
[1732722773779,30.0,240.71,240.63,12.4430172]
[1732722773985,30.0,240.71,240.63,16.5986172]
[1732722774690,30.0,240.71,240.65,12.4430172]
[1732722775071,30.0,240.71,240.66,23.776884]
[1732722775283,42.4430172,240.71,240.66,23.776884]
[1732722775486,42.4430172,240.71,240.64,23.776884]
[1732722775994,30.0,240.71,240.64,23.776884]
[1732722776381,30.0,240.71,240.66,23.776884]
[1732722778672,29.5,240.71,240.66,23.776884]
[1732722778888,12.4430172,240.69,240.65,23.776884]
[1732722779485,41.9430172,240.71,240.65,23.776884]
[1732722779680,41.9430172,240.71,240.64,23.776884]
[1732722780489,29.5,240.71,240.66,23.776884]
[1732722780879,29.5,240.71,240.63,16.5986172]
[1732722781079,12.4430172,240.66,240.59,10.0]
[1732722781279,12.4430172,240.66,240.59,14.1563]
[1732722781478,12.4430172,240.7,240.62,12.4430172]
[1732722782091,12.4430172,240.68,240.6,12.4430172]
[1732722782495,12.4430172,240.7,240.6,12.4430172]
[1732722782997,12.4430172,240.7,240.61,23.776884]
[1732722783494,12.4430172,240.7,240.63,23.776884]
[1732722784387,29.5,240.71,240.63,23.776884]
[1732722786196,31.1617,240.71,240.62,12.4430172]
[1732722786381,12.4430172,240.7,240.6,12.4430172]
[1732722786901,32.4430172,240.68,240.6,12.4430172]
[1732722787095,12.4430172,240.68,240.6,12.4430172]
[1732722787479,12.4430172,240.68,240.59,10.0]
[1732722787682,12.4430172,240.66,240.59,10.0]
[1732722789184,32.5267,240.63,240.59,10.0]
[1732722789389,12.4430172,240.62,240.59,10.0]
[1732722791800,20.0,240.58,240.44,12.443017]
[1732722791992,12.4430172,240.55,240.47,12.4430172]
[1732722793005,12.4430172,240.55,240.47,16.6014172]
[1732722793192,12.4430172,240.57,240.49,12.4430172]
[1732722794704,12.4430172,240.57,240.49,16.6011172]
[1732722795015,32.5727,240.61,240.55,12.4430172]
[1732722795304,31.3666,240.66,240.6,23.776884]
[1732722795503,31.3666,240.66,240.6,36.2199012]
[1732722795679,31.3666,240.66,240.62,12.4430172]
[1732722796006,31.3666,240.66,240.6,12.4430172]
[1732722796592,31.3666,240.66,240.6,16.5992172]
[1732722797316,31.3666,240.66,240.6,12.4430172]
[1732722798388,20.0,240.68,240.64,12.4430172]
[1732722798703,29.5,240.71,240.64,36.2199012]
[1732722798897,29.5,240.71,240.64,12.4430172]
[1732722799101,12.4430172,240.68,240.61,23.776884]
[1732722799405,12.4430172,240.64,240.56,12.4430172]
[1732722799701,12.4430172,240.62,240.54,12.4430172]
[1732722800795,12.4430172,240.62,240.54,16.6002172]
[1732722801098,12.4430172,240.62,240.55,23.776884]
[1732722801299,12.4430172,240.62,240.54,12.4430172]
[1732722801503,20.0,240.64,240.54,12.4430172]
[1732722801705,32.4430172,240.64,240.54,16.6003172]
[1732722801904,32.4430172,240.64,240.56,12.4430172]
[1732722803108,20.0,240.64,240.57,23.776884]
[1732722804299,32.4430172,240.64,240.57,23.776884]
[1732722804505,32.4430172,240.64,240.54,12.4430172]
[1732722804805,32.8747,240.61,240.55,23.776884]
[1732722805308,32.8747,240.61,240.54,12.4430172]
[1732722806303,32.8747,240.61,240.52,12.4430172]
[1732722806606,12.4430172,240.58,240.5,12.4430172]
[1732722807012,12.4430172,240.6,240.5,12.4430172]
[1732722808615,14.1055172,240.6,240.5,12.4430172]
[1732722809110,12.4430172,240.58,240.5,12.4430172]
[1732722810386,14.1056172,240.58,240.48,12.4430172]
[1732722810692,12.4430172,240.56,240.48,12.4430172]
[1732722810898,12.4430172,240.56,240.45,4.1587]
[1732722810899,12.4430172,240.56,240.46,12.4430172]
[1732722811702,12.4430172,240.56,240.47,23.776884]
[1732722812023,12.4430172,240.56,240.48,12.4430172]
[1732722813308,16.9430172,240.58,240.5,12.4430172]
[1732722813491,4.5,240.58,240.54,12.4430172]
[1732722813900,32.8747,240.61,240.56,12.4430172]
[1732722814091,32.8747,240.61,240.58,12.4430172]
[1732722814490,12.1122,240.65,240.6,12.4430172]
[1732722817217,12.1122,240.65,240.48,34.06409361]
[1732722817218,30.6612,240.66,240.62,12.4430172]
[1732722817391,30.6612,240.66,240.62,16.5989172]
[1732722817595,30.6612,240.66,240.64,12.4430172]
[1732722818189,30.6612,240.66,240.63,23.776884]
[1732722818820,30.6612,240.66,240.6,12.4430172]
[1732722819189,12.8688,240.7,240.5,5.0]
[1732722819190,12.4430172,240.7,240.63,23.776884]
[1732722819505,29.5,240.71,240.64,12.4430172]
[1732722819902,12.4430172,240.7,240.63,23.776884]
[1732722820094,14.1048172,240.7,240.62,36.2199012]
[1732722820302,14.1048172,240.7,240.62,12.4430172]
[1732722820993,14.1048172,240.7,240.61,23.776884]
[1732722821200,12.4430172,240.7,240.62,12.4430172]
[1732722822417,12.4430172,240.7,240.63,23.776884]
[1732722823019,29.5,240.71,240.65,23.776884]
[1732722823223,29.5,240.71,240.67,23.776884]
[1732722824219,29.5,240.71,240.68,12.4430172]
[1732722824620,29.5,240.71,240.6,12.4430172]
[1732722824621,29.5,240.71,240.7,36.2199012]
[1732722825220,12.4430172,240.8,240.71,23.776884]
[1732722825405,32.3075,240.81,240.73,12.4430172]
[1732722826115,12.4430172,240.8,240.73,12.4430172]
[1732722827302,32.3075,240.81,240.73,12.4430172]
[1732722829020,4.5,240.84,240.77,12.4430172]
[1732722829229,33.2048,240.87,240.79,12.4430172]
[1732722829398,31.5442,240.87,240.79,12.4430172]
[1732722829805,31.5442,240.87,240.81,12.4430172]
[1732722830209,31.5442,240.87,240.8,23.776884]
[1732722830210,43.9872172,240.87,240.8,23.776884]
[1732722830407,43.9872172,240.87,240.72,26.9826172]
[1732722830408,31.5442,240.87,240.81,12.4430172]
[1732722831225,12.4430172,240.86,240.79,12.4430172]
[1732722831524,12.4430172,240.84,240.77,12.4430172]
[1732722832026,12.4430172,240.84,240.78,23.776884]
[1732722832208,12.4430172,240.86,240.79,12.4430172]
[1732722833426,12.4430172,240.86,240.8,23.776884]
[1732722833923,12.4430172,240.86,240.77,36.2199012]
[1732722835410,14.1037172,240.86,240.77,36.2199012]
[1732722835599,12.4430172,240.86,240.77,36.2199012]
[1732722836004,1.6607,240.86,240.77,36.2199012]
[1732722836205,12.4430172,240.85,240.77,36.2199012]
[1732722836416,33.2048,240.87,240.77,36.2199012]
[1732722836605,33.2048,240.87,240.79,12.4430172]
[1732722836803,12.4430172,240.86,240.79,12.4430172]
[1732722837622,14.1037172,240.86,240.79,12.4430172]
[1732722839423,12.4430172,240.86,240.79,12.4430172]
[1732722840421,29.5,240.81,240.79,12.4430172]
[1732722840923,29.5,240.81,240.77,36.2199012]
[1732722841501,29.5,240.81,240.76,23.776884]
[1732722842422,29.5,240.81,240.76,31.72695824]
[1732722842599,29.5,240.81,240.7,20.0]
[1732722842799,29.5,240.81,240.75,7.95007424]
[1732722843023,29.5,240.81,240.79,7.95007424]
[1732722843514,29.5,240.81,240.79,12.10297424]
[1732722843906,29.5,240.81,240.8,23.776884]
[1732722844320,32.2138902,240.93,240.83,20.0]
[1732722844505,7.95007424,240.92,240.84,7.95007424]
[1732722844700,7.95007424,240.9,240.85,23.776884]
[1732722844918,7.95007424,240.9,240.82,7.95007424]
[1732722845107,7.95007424,240.9,240.83,23.776884]
[1732722845917,7.95007424,240.9,240.83,27.929084]
[1732722846637,7.95007424,240.92,240.84,7.95007424]
[1732722847129,40.16396444,240.93,240.85,23.776884]
[1732722847803,32.2138902,240.93,240.86,7.95007424]
[1732722848007,32.2138902,240.93,240.87,27.928484]
[1732722848526,0.4990902,240.93,240.87,27.928484]
[1732722848921,0.4990902,240.93,240.8,32.3488]
[1732722848922,8.44916444,240.93,240.77,10.3833]
[1732722849129,8.44916444,240.93,240.84,23.776884]
[1732722850207,7.95007424,240.91,240.84,27.928984]
[1732722850533,7.95007424,240.91,240.79,20.0]
[1732722850704,7.95007424,240.91,240.81,7.95007424]
[1732722851416,7.95007424,240.89,240.79,7.95007424]
[1732722851821,7.95007424,240.89,240.8,27.929484]
[1732722852215,33.1546,240.88,240.8,23.776884]
[1732722852409,7.95007424,240.87,240.8,23.776884]
[1732722852640,7.95007424,240.87,240.79,7.95007424]
[1732722852927,41.10467424,240.88,240.79,12.10297424]
[1732722855933,42.76517424,240.88,240.79,7.95007424]
[1732722856234,41.10467424,240.88,240.79,12.10287424]
[1732722856440,7.95007424,240.86,240.79,12.10287424]
[1732722857936,33.1546,240.88,240.79,12.10287424]
[1732722858135,7.95007424,240.86,240.79,12.10287424]
[1732722858319,7.95007424,240.86,240.79,4.1528]
[1732722859040,33.1546,240.88,240.79,4.1528]
[1732722859041,41.10467424,240.88,240.8,7.95007424]
[1732722859335,41.10467424,240.88,240.8,12.10277424]
[1732722860644,41.10467424,240.88,240.8,7.95007424]
[1732722862135,7.95007424,240.86,240.78,7.95007424]
[1732722862438,41.10467424,240.88,240.79,23.776884]
[1732722863026,41.10467424,240.88,240.8,7.95007424]
[1732722863443,41.10467424,240.88,240.79,23.776884]
[1732722863643,41.10467424,240.88,240.8,7.95007424]
[1732722863830,33.1546,240.88,240.82,7.95007424]
[1732722864032,33.1546,240.88,240.84,7.95007424]
[1732722864216,33.1546,240.88,240.85,4.1519]
[1732722864417,8.44916444,240.93,240.86,31.72695824]
[1732722865031,0.4990902,240.93,240.86,31.72695824]
[1732722865338,0.4990902,240.93,240.91,7.95007424]
[1732722866742,0.4990902,240.93,240.92,23.776884]
[1732722867524,0.4990902,240.93,240.91,12.10087424]
[1732722867728,0.4990902,240.93,240.91,7.95007424]
[1732722868942,0.4990902,240.93,240.91,12.10097424]
[1732722870830,0.4990902,240.93,240.91,7.95007424]
[1732722871138,0.4990902,240.93,240.86,12.10177424]
[1732722871335,8.44916444,240.93,240.86,12.10177424]
[1732722871543,8.44916444,240.93,240.86,7.95007424]